[Event "Titled Tuesday Blitz June 6 Early 2023"]
[White "Novikov, Evgenij"]
[Black "Przybylski, Wojciech"]
[WhiteFideId "4125380"]
[BlackFideId "1117599"]
[WhiteElo "2242"]
[BlackElo "2228"]
[Result "1-0"]
[Round "3"]
[TimeControl "180+2"]
[Date "2023.06.06"]
[WhiteClock "0:00:07"]
[BlackClock "0:00:17"]
[Board "100"]

1. e4 {[%clk 0:02:57]}  e5 {[%clk 0:02:58]} 2. Nf3 {[%clk 0:02:55]}  Nf6 {[%clk 0:02:58]} 3. Nxe5 {[%clk 0:02:51]}  d6 {[%clk 0:02:59]} 4. Nf3 {[%clk 0:02:52]}  Nxe4 {[%clk 0:02:59]} 5. Qe2 {[%clk 0:02:51]}  Qe7 {[%clk 0:02:59]} 6. d3 {[%clk 0:02:51]}  Nf6 {[%clk 0:03:00]} 7. Bg5 {[%clk 0:02:51]}  Qxe2+ {[%clk 0:02:59]} 8. Bxe2 {[%clk 0:02:52]}  Be7 {[%clk 0:03:00]} 9. O-O {[%clk 0:02:51]}  c6 {[%clk 0:02:58]} 10. Nbd2 {[%clk 0:02:48]}  Na6 {[%clk 0:02:58]} 11. c3 {[%clk 0:02:45]}  Nc7 {[%clk 0:02:58]} 12. d4 {[%clk 0:02:43]}  Ne6 {[%clk 0:02:58]} 13. Bh4 {[%clk 0:02:38]}  d5 {[%clk 0:02:57]} 14. Rfe1 {[%clk 0:02:37]}  Nf4 {[%clk 0:02:56]} 15. Bf1 {[%clk 0:02:36]}  Be6 {[%clk 0:02:56]} 16. Ng5 {[%clk 0:02:28]}  h6 {[%clk 0:02:47]} 17. Nxe6 {[%clk 0:02:24]}  Nxe6 {[%clk 0:02:47]} 18. a4 {[%clk 0:02:09]}  Kd7 {[%clk 0:02:36]} 19. Nf3 {[%clk 0:02:02]}  Bd6 {[%clk 0:02:27]} 20. Bxf6 {[%clk 0:02:00]}  gxf6 {[%clk 0:02:28]} 21. Nh4 {[%clk 0:01:57]}  Ng7 {[%clk 0:02:27]} 22. g3 {[%clk 0:01:56]}  Rae8 {[%clk 0:02:26]} 23. Bh3+ {[%clk 0:01:53]}  Kc7 {[%clk 0:02:26]} 24. Kg2 {[%clk 0:01:39]}  a5 {[%clk 0:02:22]} 25. Kf3 {[%clk 0:01:32]}  b5 {[%clk 0:02:22]} 26. Rxe8 {[%clk 0:01:28]}  Rxe8 {[%clk 0:02:22]} 27. axb5 {[%clk 0:01:28]}  cxb5 {[%clk 0:02:21]} 28. Rxa5 {[%clk 0:01:27]}  Kb6 {[%clk 0:02:21]} 29. Ra1 {[%clk 0:01:14]}  Bc7 {[%clk 0:02:08]} 30. Ng2 {[%clk 0:00:58]}  Ne6 {[%clk 0:02:05]} 31. Bxe6 {[%clk 0:00:57]}  fxe6 {[%clk 0:02:05]} 32. Ne3 {[%clk 0:00:53]}  h5 {[%clk 0:02:03]} 33. h4 {[%clk 0:00:50]}  Rh8 {[%clk 0:01:56]} 34. Nc2 {[%clk 0:00:45]}  Bd6 {[%clk 0:01:55]} 35. Re1 {[%clk 0:00:44]}  e5 {[%clk 0:01:55]} 36. dxe5 {[%clk 0:00:34]}  fxe5 {[%clk 0:01:54]} 37. Rd1 {[%clk 0:00:34]}  Rf8+ {[%clk 0:01:48]} 38. Ke2 {[%clk 0:00:33]}  Bc5 {[%clk 0:01:45]} 39. Ne3 {[%clk 0:00:33]}  d4 {[%clk 0:01:43]} 40. cxd4 {[%clk 0:00:29]}  exd4 {[%clk 0:01:43]} 41. Nd5+ {[%clk 0:00:28]}  Kc6 {[%clk 0:01:44]} 42. Nf4 {[%clk 0:00:28]}  Rf5 {[%clk 0:01:31]} 43. Rc1 {[%clk 0:00:24]}  Kd6 {[%clk 0:01:23]} 44. Nd3 {[%clk 0:00:21]}  Bb6 {[%clk 0:01:21]} 45. Ra1 {[%clk 0:00:21]}  Rf8 {[%clk 0:01:19]} 46. Ra6 {[%clk 0:00:19]}  Kc6 {[%clk 0:01:19]} 47. Ne5+ {[%clk 0:00:18]}  Kd5 {[%clk 0:01:13]} 48. Rxb6 {[%clk 0:00:18]}  Kxe5 {[%clk 0:01:13]} 49. Rxb5+ {[%clk 0:00:18]}  Ke6 {[%clk 0:01:04]} 50. Rxh5 {[%clk 0:00:19]}  d3+ {[%clk 0:01:04]} 51. Kxd3 {[%clk 0:00:17]}  Rxf2 {[%clk 0:01:04]} 52. Ke3 {[%clk 0:00:14]}  Rxb2 {[%clk 0:01:04]} 53. Kf3 {[%clk 0:00:13]}  Kf6 {[%clk 0:01:04]} 54. Rg5 {[%clk 0:00:13]}  Rb4 {[%clk 0:01:03]} 55. Kg2 {[%clk 0:00:13]}  Rb1 {[%clk 0:01:03]} 56. Kh3 {[%clk 0:00:14]}  Rb4 {[%clk 0:01:02]} 57. Rg4 {[%clk 0:00:13]}  Rb1 {[%clk 0:01:02]} 58. Rg8 {[%clk 0:00:12]}  Kf7 {[%clk 0:01:01]} 59. Ra8 {[%clk 0:00:11]}  Kf6 {[%clk 0:01:01]} 60. Ra6+ {[%clk 0:00:10]}  Kf5 {[%clk 0:00:59]} 61. Ra5+ {[%clk 0:00:11]}  Kf6 {[%clk 0:00:58]} 62. Ra4 {[%clk 0:00:12]}  Kf5 {[%clk 0:00:53]} 63. Rc4 {[%clk 0:00:10]}  Ra1 {[%clk 0:00:53]} 64. Rc3 {[%clk 0:00:09]}  Rh1+ {[%clk 0:00:52]} 65. Kg2 {[%clk 0:00:09]}  Ra1 {[%clk 0:00:53]} 66. Kf2 {[%clk 0:00:09]}  Kg4 {[%clk 0:00:52]} 67. Rc4+ {[%clk 0:00:08]}  Kh3 {[%clk 0:00:52]} 68. h5 {[%clk 0:00:07]}  Ra2+ {[%clk 0:00:42]} 69. Kf3 {[%clk 0:00:07]}  Ra3+ {[%clk 0:00:42]} 70. Kf4 {[%clk 0:00:08]}  Rxg3 {[%clk 0:00:42]} 71. Kf5 {[%clk 0:00:06]}  Rf3+ {[%clk 0:00:37]} 72. Rf4 {[%clk 0:00:05]}  Ra3 {[%clk 0:00:33]} 73. h6 {[%clk 0:00:06]}  Ra6 {[%clk 0:00:29]} 74. Kg5 {[%clk 0:00:05]}  Kg3 {[%clk 0:00:24]} 75. Rf6 {[%clk 0:00:03]}  Ra5+ {[%clk 0:00:20]} 76. Kg6 {[%clk 0:00:04]}  Kg4 {[%clk 0:00:20]} 77. h7 {[%clk 0:00:04]}  Rg5+ {[%clk 0:00:20]} 78. Kh6 {[%clk 0:00:04]}  Rh5+ {[%clk 0:00:12]} 79. Kg7 {[%clk 0:00:04]}  Kg5 {[%clk 0:00:11]} 80. Rg6+ {[%clk 0:00:03]}  Kf5 {[%clk 0:00:11]} 81. Rh6 {[%clk 0:00:03]}  Rg5+ {[%clk 0:00:09]} 82. Kf7 {[%clk 0:00:03]}  Rg2 {[%clk 0:00:09]} 83. h8=Q {[%clk 0:00:03]}  Rf2 {[%clk 0:00:10]} 84. Qf6+ {[%clk 0:00:03]}  Kg4 {[%clk 0:00:11]} 85. Qxf2 {[%clk 0:00:03]}  Kg5 {[%clk 0:00:12]} 86. Qh4+ {[%clk 0:00:03]}  Kf5 {[%clk 0:00:12]} 87. Rf6+ {[%clk 0:00:04]}  Ke5 {[%clk 0:00:13]} 88. Qf4+ {[%clk 0:00:05]}  Kd5 {[%clk 0:00:14]} 89. Rd6+ {[%clk 0:00:05]}  Kc5 {[%clk 0:00:15]} 90. Qd4+ {[%clk 0:00:06]}  Kb5 {[%clk 0:00:16]} 91. Rb6+ {[%clk 0:00:07]}  Ka5 {[%clk 0:00:17]} 92. Qb4# {[%clk 0:00:07]} 1-0


[Site "https://www.chess.com"]

[Event "Titled Tuesday Blitz June 6 Early 2023"]
[White "Alexikov, Alexander"]
[Black "Skliarov, Viktor"]
[WhiteFideId "14103958"]
[BlackFideId "14106736"]
[WhiteElo "2186"]
[BlackElo "2317"]
[Result "0-1"]
[Round "3"]
[TimeControl "180+2"]
[Date "2023.06.06"]
[WhiteClock "0:00:30"]
[BlackClock "0:00:10"]
[Board "102"]

1. e4 {[%clk 0:02:56]}  c5 {[%clk 0:03:00]} 2. Nf3 {[%clk 0:02:54]}  Nc6 {[%clk 0:03:00]} 3. d4 {[%clk 0:02:52]}  cxd4 {[%clk 0:03:01]} 4. Nxd4 {[%clk 0:02:52]}  Nf6 {[%clk 0:03:02]} 5. Nc3 {[%clk 0:02:52]}  e5 {[%clk 0:03:02]} 6. Ndb5 {[%clk 0:02:50]}  d6 {[%clk 0:03:02]} 7. Bg5 {[%clk 0:02:50]}  a6 {[%clk 0:03:03]} 8. Na3 {[%clk 0:02:49]}  b5 {[%clk 0:03:04]} 9. Nd5 {[%clk 0:02:48]}  Be7 {[%clk 0:03:04]} 10. Bxf6 {[%clk 0:02:49]}  Bxf6 {[%clk 0:03:05]} 11. c4 {[%clk 0:02:48]}  b4 {[%clk 0:03:05]} 12. Nc2 {[%clk 0:02:47]}  a5 {[%clk 0:03:06]} 13. g3 {[%clk 0:02:42]}  Bg5 {[%clk 0:03:06]} 14. Bg2 {[%clk 0:02:41]}  O-O {[%clk 0:03:05]} 15. O-O {[%clk 0:02:35]}  Be6 {[%clk 0:03:06]} 16. Qe1 {[%clk 0:02:35]}  Bxd5 {[%clk 0:02:35]} 17. cxd5 {[%clk 0:02:33]}  Nd4 {[%clk 0:02:30]} 18. Nxd4 {[%clk 0:02:31]}  exd4 {[%clk 0:02:31]} 19. Rd1 {[%clk 0:02:30]}  Qb6 {[%clk 0:02:11]} 20. Kh1 {[%clk 0:02:20]}  Rac8 {[%clk 0:02:05]} 21. f4 {[%clk 0:02:15]}  Bf6 {[%clk 0:02:03]} 22. Rf2 {[%clk 0:02:09]}  Rfe8 {[%clk 0:01:54]} 23. Re2 {[%clk 0:02:08]}  b3 {[%clk 0:01:42]} 24. axb3 {[%clk 0:01:48]}  Qxb3 {[%clk 0:01:43]} 25. Qd2 {[%clk 0:01:29]}  d3 {[%clk 0:01:34]} 26. Re3 {[%clk 0:01:27]}  Rc2 {[%clk 0:01:21]} 27. Qxd3 {[%clk 0:01:27]}  Qxb2 {[%clk 0:01:20]} 28. Qf1 {[%clk 0:01:26]}  a4 {[%clk 0:01:15]} 29. Rb1 {[%clk 0:01:23]}  Qa2 {[%clk 0:00:43]} 30. Rbe1 {[%clk 0:01:21]}  Bd4 {[%clk 0:00:34]} 31. R3e2 {[%clk 0:01:19]}  a3 {[%clk 0:00:34]} 32. Rxc2 {[%clk 0:01:12]}  Qxc2 {[%clk 0:00:34]} 33. Re2 {[%clk 0:01:07]}  Qb3 {[%clk 0:00:27]} 34. Rd2 {[%clk 0:01:03]}  Bc3 {[%clk 0:00:22]} 35. Rd1 {[%clk 0:01:00]}  a2 {[%clk 0:00:22]} 36. e5 {[%clk 0:00:56]}  Qb2 {[%clk 0:00:20]} 37. Be4 {[%clk 0:00:41]}  a1=Q {[%clk 0:00:19]} 38. Bb1 {[%clk 0:00:40]}  Qa5 {[%clk 0:00:12]} 39. Qd3 {[%clk 0:00:38]}  g6 {[%clk 0:00:12]} 40. e6 {[%clk 0:00:37]}  Qab5 {[%clk 0:00:11]} 41. Qe4 {[%clk 0:00:36]}  f5 {[%clk 0:00:10]} 42. Qf3 {[%clk 0:00:33]}  Qxb1 {[%clk 0:00:10]} 43. h4 {[%clk 0:00:31]}  Qe4 {[%clk 0:00:10]} 44. Qxe4 {[%clk 0:00:30]}  fxe4 {[%clk 0:00:10]} 0-1


[Site "https://www.chess.com"]

[Event "Titled Tuesday Blitz June 6 Early 2023"]
[White "ArchibaldCerveza29"]
[Black "brm72"]
[WhiteElo "2419"]
[BlackElo "2575"]
[Result "1-0"]
[Round "3"]
[TimeControl "180+2"]
[Date "2023.06.06"]
[WhiteClock "0:00:03"]
[BlackClock "0:00:05"]
[Board "103"]

1. e4 {[%clk 0:02:56]}  c5 {[%clk 0:02:59]} 2. c3 {[%clk 0:02:55]}  d5 {[%clk 0:02:59]} 3. exd5 {[%clk 0:02:55]}  Qxd5 {[%clk 0:02:59]} 4. d4 {[%clk 0:02:55]}  Nf6 {[%clk 0:03:00]} 5. Nf3 {[%clk 0:02:55]}  Nc6 {[%clk 0:02:59]} 6. Na3 {[%clk 0:02:53]}  Bg4 {[%clk 0:02:57]} 7. Nb5 {[%clk 0:02:52]}  O-O-O {[%clk 0:02:56]} 8. Be3 {[%clk 0:02:36]}  e5 {[%clk 0:02:47]} 9. c4 {[%clk 0:02:29]}  Bxf3 {[%clk 0:02:07]} 10. gxf3 {[%clk 0:02:01]}  Qd7 {[%clk 0:02:00]} 11. d5 {[%clk 0:02:01]}  Nd4 {[%clk 0:02:00]} 12. a4 {[%clk 0:01:37]}  a6 {[%clk 0:01:57]} 13. Nc3 {[%clk 0:01:35]}  Qf5 {[%clk 0:01:54]} 14. Bxd4 {[%clk 0:01:29]}  exd4 {[%clk 0:01:55]} 15. h4 {[%clk 0:01:09]}  Re8+ {[%clk 0:01:42]} 16. Ne2 {[%clk 0:01:08]}  Qxf3 {[%clk 0:01:37]} 17. Rh3 {[%clk 0:01:03]}  Qe4 {[%clk 0:01:28]} 18. Qd3 {[%clk 0:01:00]}  Bd6 {[%clk 0:01:21]} 19. O-O-O {[%clk 0:00:58]}  Kc7 {[%clk 0:01:13]} 20. Qb3 {[%clk 0:00:51]}  Ng4 {[%clk 0:00:45]} 21. Rf3 {[%clk 0:00:39]}  Ne5 {[%clk 0:00:43]} 22. Rg3 {[%clk 0:00:35]}  d3 {[%clk 0:00:25]} 23. Nc3 {[%clk 0:00:35]}  Qf4+ {[%clk 0:00:21]} 24. Kb1 {[%clk 0:00:32]}  Nxc4 {[%clk 0:00:19]} 25. Rxg7 {[%clk 0:00:26]}  Nd2+ {[%clk 0:00:16]} 26. Rxd2 {[%clk 0:00:26]}  Qxd2 {[%clk 0:00:17]} 27. Rxf7+ {[%clk 0:00:24]}  Re7 {[%clk 0:00:18]} 28. Rxe7+ {[%clk 0:00:17]}  Bxe7 {[%clk 0:00:19]} 29. d6+ {[%clk 0:00:15]}  Bxd6 {[%clk 0:00:19]} 30. Bg2 {[%clk 0:00:15]}  Rb8 {[%clk 0:00:12]} 31. Nd5+ {[%clk 0:00:15]}  Kd7 {[%clk 0:00:09]} 32. Nb6+ {[%clk 0:00:14]}  Ke7 {[%clk 0:00:08]} 33. Nd5+ {[%clk 0:00:07]}  Kf8 {[%clk 0:00:08]} 34. Nf6 {[%clk 0:00:05]}  Qe1+ {[%clk 0:00:06]} 35. Ka2 {[%clk 0:00:06]}  Qe5 {[%clk 0:00:05]} 36. Qg8+ {[%clk 0:00:05]}  Ke7 {[%clk 0:00:06]} 37. Nd5+ {[%clk 0:00:05]}  Kd7 {[%clk 0:00:06]} 38. Qf7+ {[%clk 0:00:04]}  Be7 {[%clk 0:00:04]} 39. Bh3+ {[%clk 0:00:03]}  Kd6 {[%clk 0:00:04]} 40. Ne3 {[%clk 0:00:04]}  b5 {[%clk 0:00:02]} 41. Nf5+ {[%clk 0:00:04]}  Kc6 {[%clk 0:00:02]} 42. Nxe7+ {[%clk 0:00:04]}  Kb6 {[%clk 0:00:02]} 43. Nd5+ {[%clk 0:00:04]}  Ka5 {[%clk 0:00:03]} 44. Qc7+ {[%clk 0:00:04]}  Qxc7 {[%clk 0:00:03]} 45. Nxc7 {[%clk 0:00:05]}  Kxa4 {[%clk 0:00:03]} 46. Nxa6 {[%clk 0:00:04]}  d2 {[%clk 0:00:03]} 47. Bg4 {[%clk 0:00:04]}  Rd8 {[%clk 0:00:03]} 48. Bd1+ {[%clk 0:00:03]}  Ka5 {[%clk 0:00:04]} 49. Nxc5 {[%clk 0:00:04]}  Kb6 {[%clk 0:00:04]} 50. Ne6 {[%clk 0:00:04]}  Rd6 {[%clk 0:00:04]} 51. Nf4 {[%clk 0:00:05]}  Rd4 {[%clk 0:00:04]} 52. Ne6 {[%clk 0:00:05]}  Rxh4 {[%clk 0:00:04]} 53. Kb3 {[%clk 0:00:05]}  Rh1 {[%clk 0:00:05]} 54. Kc2 {[%clk 0:00:06]}  Re1 {[%clk 0:00:05]} 55. Nd4 {[%clk 0:00:05]}  Re5 {[%clk 0:00:06]} 56. f4 {[%clk 0:00:05]}  Rc5+ {[%clk 0:00:06]} 57. Kd3 {[%clk 0:00:05]}  Rd5 {[%clk 0:00:07]} 58. Ke3 {[%clk 0:00:05]}  Kc5 {[%clk 0:00:08]} 59. Nb3+ {[%clk 0:00:05]}  Kb4 {[%clk 0:00:08]} 60. Nxd2 {[%clk 0:00:06]}  Rd6 {[%clk 0:00:08]} 61. Ne4 {[%clk 0:00:07]}  Rd8 {[%clk 0:00:08]} 62. f5 {[%clk 0:00:07]}  Rxd1 {[%clk 0:00:08]} 63. f6 {[%clk 0:00:07]}  Rf1 {[%clk 0:00:08]} 64. Nf2 {[%clk 0:00:07]}  Re1+ {[%clk 0:00:08]} 65. Kf4 {[%clk 0:00:06]}  Re8 {[%clk 0:00:09]} 66. Ne4 {[%clk 0:00:06]}  Kb3 {[%clk 0:00:09]} 67. Kf5 {[%clk 0:00:04]}  Kxb2 {[%clk 0:00:08]} 68. f7 {[%clk 0:00:03]}  Rb8 {[%clk 0:00:08]} 69. Nd6 {[%clk 0:00:02]}  b4 {[%clk 0:00:07]} 70. Ne8 {[%clk 0:00:02]}  b3 {[%clk 0:00:07]} 71. f8=Q {[%clk 0:00:02]}  Kc2 {[%clk 0:00:07]} 72. Qd6 {[%clk 0:00:01]}  Kb1 {[%clk 0:00:08]} 73. Qxb8 {[%clk 0:00:01]}  b2 {[%clk 0:00:09]} 74. Nd6 {[%clk 0:00:01]}  Kc1 {[%clk 0:00:10]} 75. Qc7+ {[%clk 0:00:02]}  Kb1 {[%clk 0:00:10]} 76. Qb6 {[%clk 0:00:02]}  Ka1 {[%clk 0:00:11]} 77. Qc5 {[%clk 0:00:03]}  b1=Q+ {[%clk 0:00:12]} 78. Ke6 {[%clk 0:00:02]}  Qg6+ {[%clk 0:00:12]} 79. Kd7 {[%clk 0:00:03]}  Qg7+ {[%clk 0:00:12]} 80. Kc6 {[%clk 0:00:03]}  Qb2 {[%clk 0:00:13]} 81. Qg1+ {[%clk 0:00:02]}  Qb1 {[%clk 0:00:13]} 82. Qa7+ {[%clk 0:00:03]}  Qa2 {[%clk 0:00:13]} 83. Qd4+ {[%clk 0:00:04]}  Qb2 {[%clk 0:00:13]} 84. Qc5 {[%clk 0:00:04]}  Qb1 {[%clk 0:00:12]} 85. Nc4 {[%clk 0:00:04]}  Qe4+ {[%clk 0:00:12]} 86. Kb5 {[%clk 0:00:04]}  Qb7+ {[%clk 0:00:12]} 87. Nb6 {[%clk 0:00:04]}  Qe4 {[%clk 0:00:11]} 88. Qc1+ {[%clk 0:00:04]}  Ka2 {[%clk 0:00:11]} 89. Qd2+ {[%clk 0:00:03]}  Ka1 {[%clk 0:00:11]} 90. Nc4 {[%clk 0:00:03]}  Qb7+ {[%clk 0:00:11]} 91. Kc5 {[%clk 0:00:04]}  Qc7+ {[%clk 0:00:11]} 92. Kb4 {[%clk 0:00:04]}  Qb7+ {[%clk 0:00:10]} 93. Kc3 {[%clk 0:00:05]}  Qb1 {[%clk 0:00:09]} 94. Na3 {[%clk 0:00:03]}  Qg6 {[%clk 0:00:05]} 95. Qb2# {[%clk 0:00:03]} 1-0


[Site "https://www.chess.com"]

[Event "Titled Tuesday Blitz June 6 Early 2023"]
[White "Taboas Rodriguez, Daniel"]
[Black "kuanysh1981"]
[WhiteFideId "2208466"]
[WhiteElo "2365"]
[BlackElo "2419"]
[Result "0-1"]
[Round "3"]
[TimeControl "180+2"]
[Date "2023.06.06"]
[WhiteClock "0:02:13"]
[BlackClock "0:02:19"]
[Board "104"]

1. d4 {[%clk 0:03:00]}  Nf6 {[%clk 0:02:59]} 2. Nf3 {[%clk 0:03:00]}  e6 {[%clk 0:02:59]} 3. c4 {[%clk 0:03:01]}  Bb4+ {[%clk 0:02:58]} 4. Nbd2 {[%clk 0:03:01]}  b6 {[%clk 0:02:54]} 5. a3 {[%clk 0:03:02]}  Be7 {[%clk 0:02:53]} 6. e4 {[%clk 0:03:02]}  Bb7 {[%clk 0:02:52]} 7. e5 {[%clk 0:03:02]}  Ne4 {[%clk 0:02:52]} 8. Nxe4 {[%clk 0:03:03]}  Bxe4 {[%clk 0:02:52]} 9. Bd3 {[%clk 0:03:03]}  Bxd3 {[%clk 0:02:50]} 10. Qxd3 {[%clk 0:03:04]}  O-O {[%clk 0:02:51]} 11. O-O {[%clk 0:03:04]}  d6 {[%clk 0:02:51]} 12. Qe4 {[%clk 0:03:03]}  Nd7 {[%clk 0:02:51]} 13. Bf4 {[%clk 0:03:02]}  dxe5 {[%clk 0:02:50]} 14. Nxe5 {[%clk 0:02:56]}  Nxe5 {[%clk 0:02:50]} 15. Bxe5 {[%clk 0:02:57]}  Qd7 {[%clk 0:02:38]} 16. Rad1 {[%clk 0:02:56]}  Rad8 {[%clk 0:02:37]} 17. Rd3 {[%clk 0:02:56]}  c6 {[%clk 0:02:36]} 18. Rfd1 {[%clk 0:02:49]}  f6 {[%clk 0:02:33]} 19. Bg3 {[%clk 0:02:48]}  Bd6 {[%clk 0:02:33]} 20. Re1 {[%clk 0:02:46]}  Bxg3 {[%clk 0:02:31]} 21. hxg3 {[%clk 0:02:46]}  Rfe8 {[%clk 0:02:31]} 22. Ree3 {[%clk 0:02:43]}  b5 {[%clk 0:02:22]} 23. b3 {[%clk 0:02:40]}  a5 {[%clk 0:02:22]} 24. a4 {[%clk 0:02:35]}  bxc4 {[%clk 0:02:20]} 25. bxc4 {[%clk 0:02:35]}  Rb8 {[%clk 0:02:21]} 26. Qg4 {[%clk 0:02:27]}  Rb4 {[%clk 0:02:20]} 27. d5 {[%clk 0:02:13]}  cxd5 {[%clk 0:02:19]} 28. Rxd5 {[%clk 0:02:13]}  Qxd5 {[%clk 0:02:19]} 0-1


[Site "https://www.chess.com"]

[Event "Titled Tuesday Blitz June 6 Early 2023"]
[White "Guz, Ari"]
[Black "Mogirzan, Matei-Valeriu"]
[WhiteFideId "2825759"]
[BlackFideId "1257455"]
[WhiteElo "2205"]
[BlackElo "1733"]
[Result "1-0"]
[Round "3"]
[TimeControl "180+2"]
[Date "2023.06.06"]
[WhiteClock "0:00:51"]
[BlackClock "0:00:01"]
[Board "105"]

1. b3 {[%clk 0:02:44]}  Nc6 {[%clk 0:02:53]} 2. Bb2 {[%clk 0:02:41]}  e5 {[%clk 0:02:48]} 3. e4 {[%clk 0:02:40]}  f5 {[%clk 0:02:45]} 4. d3 {[%clk 0:02:38]}  Nf6 {[%clk 0:02:44]} 5. Nd2 {[%clk 0:02:36]}  Bc5 {[%clk 0:02:43]} 6. Qe2 {[%clk 0:02:25]}  Nd4 {[%clk 0:02:31]} 7. Qd1 {[%clk 0:02:24]}  O-O {[%clk 0:02:28]} 8. exf5 {[%clk 0:02:21]}  d5 {[%clk 0:02:24]} 9. h3 {[%clk 0:02:21]}  Nxf5 {[%clk 0:02:07]} 10. Ngf3 {[%clk 0:02:17]}  e4 {[%clk 0:02:02]} 11. dxe4 {[%clk 0:02:16]}  dxe4 {[%clk 0:01:43]} 12. Bc4+ {[%clk 0:02:14]}  Kh8 {[%clk 0:01:41]} 13. Bxf6 {[%clk 0:01:59]}  Qe8 {[%clk 0:01:16]} 14. Be5 {[%clk 0:01:32]}  exf3 {[%clk 0:01:04]} 15. Nxf3 {[%clk 0:01:33]}  Nh4 {[%clk 0:00:32]} 16. Qe2 {[%clk 0:01:26]}  Nxg2+ {[%clk 0:00:08]} 17. Kf1 {[%clk 0:01:24]}  Nf4 {[%clk 0:00:02]} 18. Qe4 {[%clk 0:01:23]}  Ng6 {[%clk 0:00:01]} 19. Re1 {[%clk 0:01:10]}  Bf5 {[%clk 0:00:02]} 20. Qd5 {[%clk 0:01:11]}  Bd6 {[%clk 0:00:01]} 21. Bxd6 {[%clk 0:01:07]}  Qd7 {[%clk 0:00:01]} 22. Bg3 {[%clk 0:01:05]}  Bxh3+ {[%clk 0:00:02]} 23. Kg1 {[%clk 0:01:04]}  Qg4 {[%clk 0:00:02]} 24. Ng5 {[%clk 0:01:01]}  Rxf2 {[%clk 0:00:01]} 25. Kxf2 {[%clk 0:00:54]}  Nh4 {[%clk 0:00:02]} 26. Qg8+ {[%clk 0:00:51]}  Rxg8 {[%clk 0:00:01]} 27. Nf7# {[%clk 0:00:51]} 1-0


[Site "https://www.chess.com"]

[Event "Titled Tuesday Blitz June 6 Early 2023"]
[White "FunnyDuck66"]
[Black "Gontcharov, Vladislav"]
[BlackFideId "4123492"]
[WhiteElo "2414"]
[BlackElo "2420"]
[Result "0-1"]
[Round "3"]
[TimeControl "180+2"]
[Date "2023.06.06"]
[WhiteClock "0:00:32"]
[BlackClock "0:00:09"]
[Board "107"]

1. d4 {[%clk 0:03:00]}  Nf6 {[%clk 0:02:59]} 2. Nf3 {[%clk 0:03:00]}  c5 {[%clk 0:02:58]} 3. d5 {[%clk 0:03:00]}  e6 {[%clk 0:02:58]} 4. Nc3 {[%clk 0:03:00]}  exd5 {[%clk 0:02:57]} 5. Nxd5 {[%clk 0:03:00]}  d6 {[%clk 0:02:58]} 6. Bf4 {[%clk 0:02:52]}  Nc6 {[%clk 0:02:53]} 7. e3 {[%clk 0:02:50]}  Nxd5 {[%clk 0:02:52]} 8. Qxd5 {[%clk 0:02:49]}  Be6 {[%clk 0:02:52]} 9. Qd2 {[%clk 0:02:49]}  d5 {[%clk 0:02:48]} 10. Bb5 {[%clk 0:02:48]}  Be7 {[%clk 0:02:47]} 11. O-O {[%clk 0:02:46]}  O-O {[%clk 0:02:47]} 12. Bxc6 {[%clk 0:02:45]}  bxc6 {[%clk 0:02:47]} 13. Ne5 {[%clk 0:02:45]}  Qb6 {[%clk 0:02:44]} 14. c3 {[%clk 0:02:44]}  Rad8 {[%clk 0:02:38]} 15. Qc2 {[%clk 0:02:42]}  f6 {[%clk 0:02:35]} 16. Nf3 {[%clk 0:02:41]}  Bf7 {[%clk 0:02:33]} 17. Qb3 {[%clk 0:02:21]}  Rd7 {[%clk 0:02:23]} 18. Qc2 {[%clk 0:01:44]}  Bg6 {[%clk 0:02:22]} 19. Qe2 {[%clk 0:01:44]}  Re8 {[%clk 0:02:16]} 20. Nh4 {[%clk 0:01:43]}  Bf8 {[%clk 0:02:04]} 21. Nxg6 {[%clk 0:01:42]}  hxg6 {[%clk 0:02:04]} 22. h4 {[%clk 0:01:37]}  Rde7 {[%clk 0:02:00]} 23. Qg4 {[%clk 0:01:24]}  Kf7 {[%clk 0:01:59]} 24. Rab1 {[%clk 0:01:21]}  Qb7 {[%clk 0:01:46]} 25. Bd6 {[%clk 0:01:20]}  Re4 {[%clk 0:01:45]} 26. Qg3 {[%clk 0:01:18]}  Bxd6 {[%clk 0:01:37]} 27. Qxd6 {[%clk 0:01:18]}  Rxh4 {[%clk 0:01:37]} 28. g3 {[%clk 0:01:15]}  Rh5 {[%clk 0:01:28]} 29. Kg2 {[%clk 0:01:14]}  Qe7 {[%clk 0:01:19]} 30. Qxe7+ {[%clk 0:01:07]}  Kxe7 {[%clk 0:01:16]} 31. b4 {[%clk 0:01:08]}  cxb4 {[%clk 0:01:08]} 32. Rxb4 {[%clk 0:01:08]}  Rd8 {[%clk 0:01:05]} 33. Rb7+ {[%clk 0:01:07]}  Rd7 {[%clk 0:01:05]} 34. Rfb1 {[%clk 0:01:07]}  a5 {[%clk 0:00:35]} 35. Rxd7+ {[%clk 0:01:08]}  Kxd7 {[%clk 0:00:35]} 36. Rb7+ {[%clk 0:01:07]}  Kd6 {[%clk 0:00:35]} 37. Rxg7 {[%clk 0:01:07]}  Rh6 {[%clk 0:00:30]} 38. Ra7 {[%clk 0:01:07]}  Kc5 {[%clk 0:00:31]} 39. Rxa5+ {[%clk 0:01:07]}  Kc4 {[%clk 0:00:31]} 40. Ra6 {[%clk 0:01:07]}  c5 {[%clk 0:00:31]} 41. Rxf6 {[%clk 0:01:00]}  Kxc3 {[%clk 0:00:31]} 42. Rc6 {[%clk 0:01:01]}  c4 {[%clk 0:00:26]} 43. Rc5 {[%clk 0:01:00]}  Rh5 {[%clk 0:00:25]} 44. Kf3 {[%clk 0:01:00]}  d4 {[%clk 0:00:17]} 45. exd4 {[%clk 0:00:57]}  Kxd4 {[%clk 0:00:17]} 46. Rc8 {[%clk 0:00:44]}  Re5 {[%clk 0:00:15]} 47. a4 {[%clk 0:00:43]}  c3 {[%clk 0:00:15]} 48. Rd8+ {[%clk 0:00:44]}  Kc4 {[%clk 0:00:15]} 49. Rc8+ {[%clk 0:00:44]}  Kb3 {[%clk 0:00:15]} 50. Kf4 {[%clk 0:00:41]}  Ra5 {[%clk 0:00:14]} 51. Rb8+ {[%clk 0:00:39]}  Kxa4 {[%clk 0:00:13]} 52. Ke3 {[%clk 0:00:40]}  Rd5 {[%clk 0:00:13]} 53. Rb1 {[%clk 0:00:40]}  Ka3 {[%clk 0:00:12]} 54. Ke4 {[%clk 0:00:29]}  Rd6 {[%clk 0:00:12]} 55. Ke5 {[%clk 0:00:29]}  Rd8 {[%clk 0:00:12]} 56. Rb7 {[%clk 0:00:24]}  c2 {[%clk 0:00:12]} 57. Ra7+ {[%clk 0:00:24]}  Kb3 {[%clk 0:00:12]} 58. Rb7+ {[%clk 0:00:25]}  Kc3 {[%clk 0:00:12]} 59. Rc7+ {[%clk 0:00:24]}  Kd2 {[%clk 0:00:12]} 60. Kf6 {[%clk 0:00:25]}  Rd6+ {[%clk 0:00:12]} 61. Kg5 {[%clk 0:00:23]}  c1=Q {[%clk 0:00:11]} 62. Rxc1 {[%clk 0:00:24]}  Kxc1 {[%clk 0:00:11]} 63. f4 {[%clk 0:00:24]}  Kd2 {[%clk 0:00:12]} 64. g4 {[%clk 0:00:25]}  Ke3 {[%clk 0:00:11]} 65. f5 {[%clk 0:00:26]}  gxf5 {[%clk 0:00:11]} 66. gxf5 {[%clk 0:00:27]}  Ke4 {[%clk 0:00:09]} 67. f6 {[%clk 0:00:28]}  Ke5 {[%clk 0:00:09]} 68. f7 {[%clk 0:00:29]}  Rd8 {[%clk 0:00:09]} 69. Kg6 {[%clk 0:00:29]}  Ke6 {[%clk 0:00:09]} 70. Kg7 {[%clk 0:00:30]}  Ke7 {[%clk 0:00:09]} 71. f8=R {[%clk 0:00:28]}  Rxf8 {[%clk 0:00:10]} 72. Kg6 {[%clk 0:00:29]}  Ke6 {[%clk 0:00:09]} 73. Kg5 {[%clk 0:00:30]}  Rf5+ {[%clk 0:00:09]} 74. Kg4 {[%clk 0:00:31]}  Ke5 {[%clk 0:00:09]} 75. Kg3 {[%clk 0:00:32]}  Ke4 {[%clk 0:00:09]} 0-1


[Site "https://www.chess.com"]